[Event "RUS-ch Men Blitz 2019"]
[Site "Sochi"]
[Date "2019.10.17"]
[Round "4.3"]
[White "Ponkratov, Pavel"]
[Black "Papin, Vasily"]
[Result "1-0"]
[ECO "A37"]
[WhiteElo "2621"]
[BlackElo "2481"]
[Annotator "RC"]
[PlyCount "67"]
[EventDate "2019.10.17"]
[EventType "swiss"]
[EventCountry "RUS"]
[SourceTitle "playchess.com"]
[Source "ChessBase"]
[SourceQuality "1"]
[TimeControl "180+2"]

1. c4 {[%emt 0:00:00]} c5 {[%emt 0:00:00]} 2. g3 {[%emt 0:00:02]} g6 {[%emt 0:00:01]} 3. Bg2 {[%emt 0:00:01]} Bg7 {[%emt 0:00:01]} 4. Nc3 {[%emt 0:00:01]} Nc6 {[%emt 0:00:01]} 5. Nf3 {[%emt 0:00:03]} d6 {[%emt 0:00:02]} 6. O-O {[%emt 0:00:03]} e6 {[%emt 0:00:04]} 7. Rb1 {[%emt 0:00:06]} Qd7 {[%emt 0:00:32]} 8. e3 {[%emt 0:00:05]} Nge7 {[%emt 0:00:35]} 9. d4 {[%emt 0:00:01]} cxd4 {[%emt 0:00:03]} 10. exd4 {[%emt 0:00:01]} d5 {[%emt 0:00:01]} 11. c5 {[%emt 0:00:08]} b6 {[%emt 0:00:04]} 12. Na4 {[%emt 0:00:09]} b5 {[%emt 0:00:29]} 13. Nc3 {[%emt 0:00:01]} b4 {[%emt 0:00:00]} 14. Ne2 {[%emt 0:00:10]} Ba6 {[%emt 0:00:07]} 15. Re1 {[%emt 0:00:01]} O-O {[%emt 0:00:03]} 16. b3 {[%emt 0:00:11]} Bb5 {[%emt 0:00:09]} 17. Nf4 {[%emt 0:00:12]} a5 {[%emt 0:00:15]} 18. h4 {[%emt 0:00:01]} a4 {[%emt 0:00:10]} 19. Bh3 {[%emt 0:00:08]} Nf5 {[%emt 0:00:10]} 20. Bb2 {[%emt 0:00:03]} axb3 {[%emt 0:00:02]} 21. axb3 {[%emt 0:00:01]} Ra2 {[%emt 0:00:02]} 22. Bxf5 {[%emt 0:00:19]} exf5 {[%emt 0:00:04]} 23. Ne5 {[%emt 0:00:00]} Qd8 {[%emt 0:00:12]} 24. Qf3 {[%emt 0:00:12]} Rxb2 {[%emt 0:00:07]} 25. Rxb2 {[%emt 0:00:02]} Nxd4 {[%emt 0:00:01]} 26. Qd1 {[%emt 0:00:02]} Ne6 {[%emt 0:00:14]} 27. Qxd5 {[%emt 0:00:18]} Qxd5 {[%emt 0:00:04]} 28. Nxd5 {[%emt 0:00:01]} Nxc5 {[%emt 0:00:02]} 29. Ra2 {[%emt 0:00:12]} Nxb3 {[%emt 0:00:05]} 30. Ne7+ {[%emt 0:00:09]} Kh8 {[%emt 0:00:03]} 31. Ra8 {[%emt 0:00:02]} h5 {[%emt 0:00:10]} 32. Nxf7+ {[%emt 0:00:07]} Kh7 {[%emt 0:00:00]} 33. Ng5+ {[%emt 0:00:01]} Kh6 {[%emt 0:00:02]} 34. Re6 {[%emt 0:00:07]} 1-0

[Event "RUS-ch Men Blitz 2019"]
[Site "Sochi"]
[Date "2019.10.20"]
[Round "4.4"]
[White "Bocharov, Dmitry"]
[Black "Popov, Ivan"]
[Result "1/2-1/2"]
[ECO "A06"]
[WhiteElo "2519"]
[BlackElo "2611"]
[Annotator "ChessBase"]
[PlyCount "44"]
[EventDate "2019.10.17"]
[EventType "swiss"]
[EventCountry "RUS"]
[SourceTitle "playchess.com"]
[Source "ChessBase"]
[SourceQuality "1"]
[TimeControl "180+2"]

1. Nf3 {[%emt 0:00:00]} d5 {[%emt 0:00:00]} 2. g3 {[%emt 0:00:01]} c6 {[%emt 0:00:00]} 3. Bg2 {[%emt 0:00:01]} Bg4 {[%emt 0:00:01]} 4. c4 {[%emt 0:00:07]} e6 {[%emt 0:00:12]} 5. O-O {[%emt 0:00:03]} Nd7 {[%emt 0:00:09]} 6. cxd5 {[%emt 0:00:02]} exd5 {[%emt 0:00:07]} 7. d3 {[%emt 0:00:01]} Ngf6 {[%emt 0:00:03]} 8. Nc3 {[%emt 0:00:04]} Bc5 {[%emt 0:00:07]} 9. a3 {[%emt 0:00:08]} a5 {[%emt 0:00:05]} 10. Qb3 {[%emt 0:00:09]} Qb6 {[%emt 0:00:42]} 11. Qc2 {[%emt 0:00:01]} Qa6 {[%emt 0:00:11]} 12. h3 {[%emt 0:00:10]} Bxf3 {[%emt 0:00:08]} 13. Bxf3 {[%emt 0:00:02]} O-O {[%emt 0:00:02]} 14. e4 {[%emt 0:00:03]} dxe4 {[%emt 0:00:19]} 15. dxe4 {[%emt 0:00:02]} Rfe8 {[%emt 0:00:03]} 16. Kg2 {[%emt 0:00:30]} Bd4 {[%emt 0:00:22]} 17. Rd1 {[%emt 0:00:18]} Qa7 {[%emt 0:00:02]} 18. Kf1 {[%emt 0:00:58]} Ne5 {[%emt 0:00:03]} 19. Bg2 {[%emt 0:00:01]} Rad8 {[%emt 0:00:07]} 20. Bg5 {[%emt 0:00:04]} Ng6 {[%emt 0:00:17]} 21. Rd2 {[%emt 0:00:24]} h6 {[%emt 0:00:01]} 22. Bxf6 {[%emt 0:00:02]} Bxf6 {[%emt 0:00:01]} 1/2-1/2

[Event "RUS-ch Men Blitz 2019"]
[Site "Sochi"]
[Date "2019.10.17"]
[Round "4.4"]
[White "Vastrukhin, Oleg"]
[Black "Yudin, Sergei"]
[Result "1-0"]
[ECO "A04"]
[WhiteElo "2428"]
[BlackElo "2497"]
[Annotator "ChessBase"]
[PlyCount "45"]
[EventDate "2019.10.17"]
[EventType "swiss"]
[EventCountry "RUS"]
[SourceTitle "playchess.com"]
[Source "ChessBase"]
[SourceQuality "1"]
[TimeControl "180+2"]

1. Nf3 {[%emt 0:00:00]} e6 {[%emt 0:00:00]} 2. g3 {[%emt 0:00:00]} b5 {[%emt 0:00:00]} 3. Bg2 {[%emt 0:00:01]} Bb7 {[%emt 0:00:01]} 4. O-O {[%emt 0:00:02]} c5 {[%emt 0:00:01]} 5. d3 {[%emt 0:00:01]} Nf6 {[%emt 0:00:02]} 6. e4 {[%emt 0:00:02]} d6 {[%emt 0:00:01]} 7. a4 {[%emt 0:00:05]} b4 {[%emt 0:00:02]} 8. Nbd2 {[%emt 0:00:02]} Nc6 {[%emt 0:00:05]} 9. Nc4 {[%emt 0:00:02]} Qc7 {[%emt 0:00:15]} 10. Re1 {[%emt 0:00:01]} Be7 {[%emt 0:00:04]} 11. e5 {[%emt 0:00:07]} dxe5 {[%emt 0:00:02]} 12. Nfxe5 {[%emt 0:00:01]} Nxe5 {[%emt 0:00:02]} 13. Nxe5 {[%emt 0:00:04]} O-O {[%emt 0:00:10]} 14. Nc4 {[%emt 0:00:17]} Bd5 {[%emt 0:00:05]} 15. Bf4 {[%emt 0:00:07]} Qb7 {[%emt 0:00:01]} 16. Bxd5 {[%emt 0:00:08]} Qxd5 {[%emt 0:00:09]} 17. Be5 {[%emt 0:00:12]} Nd7 {[%emt 0:00:11]} 18. Qg4 {[%emt 0:00:11]} g6 {[%emt 0:00:29]} 19. h4 {[%emt 0:00:10]} h5 {[%emt 0:00:05]} 20. Qe4 {[%emt 0:00:23]} Rfe8 {[%emt 0:00:12]} 21. Rad1 {[%emt 0:00:11]} Nb6 {[%emt 0:00:09]} 22. Qf4 {[%emt 0:00:29]} Rad8 {[%emt 0:00:03]} 23. Qh6 {[%emt 0:00:06]} 1-0

[Event "RUS-ch Men Blitz 2019"]
[Site "Sochi"]
[Date "2019.10.17"]
[Round "4.8"]
[White "Sakaev, Konstantin"]
[Black "Belyakov, Bogdan"]
[Result "1-0"]
[ECO "E73"]
[WhiteElo "2595"]
[BlackElo "2495"]
[Annotator "ChessBase"]
[PlyCount "39"]
[EventDate "2019.10.17"]
[EventType "swiss"]
[EventCountry "RUS"]
[SourceTitle "playchess.com"]
[Source "ChessBase"]
[SourceQuality "1"]
[TimeControl "180+2"]

1. d4 {[%emt 0:00:00]} Nf6 {[%emt 0:00:00]} 2. c4 {[%emt 0:00:00]} g6 {[%emt 0:00:00]} 3. Nc3 {[%emt 0:00:01]} Bg7 {[%emt 0:00:02]} 4. e4 {[%emt 0:00:01]} d6 {[%emt 0:00:01]} 5. Be2 {[%emt 0:00:01]} O-O {[%emt 0:00:06]} 6. Be3 {[%emt 0:00:02]} c5 {[%emt 0:00:03]} 7. d5 {[%emt 0:00:04]} e6 {[%emt 0:00:01]} 8. Nf3 {[%emt 0:00:02]} Ng4 {[%emt 0:00:17]} 9. Bg5 {[%emt 0:00:02]} f6 {[%emt 0:00:06]} 10. Bd2 {[%emt 0:00:11]} f5 {[%emt 0:00:07]} 11. exf5 {[%emt 0:00:18]} exd5 {[%emt 0:00:17]} 12. fxg6 {[%emt 0:00:15]} d4 {[%emt 0:00:03]} 13. gxh7+ {[%emt 0:00:08]} Kh8 {[%emt 0:00:06]} 14. Nd5 {[%emt 0:00:01]} Nc6 {[%emt 0:00:05]} 15. O-O {[%emt 0:00:18]} Be6 {[%emt 0:00:20]} 16. Ng5 {[%emt 0:00:15]} Bxd5 {[%emt 0:01:18]} 17. cxd5 {[%emt 0:00:07]} Nxf2 {[%emt 0:00:02]} 18. Rxf2 {[%emt 0:00:03]} Rxf2 {[%emt 0:00:01]} 19. Kxf2 {[%emt 0:00:06]} d3 {[%emt 0:00:05]} 20. Nf7+ {[%emt 0:00:02]} 1-0

[Event "RUS-ch Men Blitz 2019"]
[Site "Sochi"]
[Date "2019.10.17"]
[Round "4.9"]
[White "Antipov, Mikhail Al."]
[Black "Sysolyatin, Evgeny"]
[Result "1-0"]
[ECO "C50"]
[WhiteElo "2567"]
[BlackElo "2271"]
[Annotator "RC"]
[PlyCount "93"]
[EventDate "2019.10.17"]
[EventType "swiss"]
[EventCountry "RUS"]
[SourceTitle "playchess.com"]
[Source "ChessBase"]
[SourceQuality "1"]
[TimeControl "180+2"]

1. e4 {[%emt 0:00:00]} e5 {[%emt 0:00:00]} 2. Nf3 {[%emt 0:00:00]} Nc6 {[%emt 0:00:00]} 3. Bc4 {[%emt 0:00:01]} Bc5 {[%emt 0:00:02]} 4. O-O {[%emt 0:00:02]} Nf6 {[%emt 0:00:01]} 5. d3 {[%emt 0:00:00]} d6 {[%emt 0:00:01]} 6. c3 {[%emt 0:00:02]} a5 {[%emt 0:00:02]} 7. h3 {[%emt 0:00:02]} h6 {[%emt 0:00:01]} 8. Nbd2 {[%emt 0:00:01]} O-O {[%emt 0:00:02]} 9. Re1 {[%emt 0:00:01]} Bb6 {[%emt 0:00:12]} 10. Nf1 {[%emt 0:00:17]} Ne7 {[%emt 0:00:01]} 11. Ng3 {[%emt 0:00:03]} Ng6 {[%emt 0:00:01]} 12. d4 {[%emt 0:00:01]} exd4 {[%emt 0:00:29]} 13. cxd4 {[%emt 0:00:05]} d5 {[%emt 0:00:01]} 14. exd5 {[%emt 0:00:01]} Nxd5 {[%emt 0:00:02]} 15. Ne5 {[%emt 0:00:10]} Nxe5 {[%emt 0:00:23]} 16. dxe5 {[%emt 0:00:05]} Nb4 {[%emt 0:00:05]} 17. Qb3 {[%emt 0:00:16]} Qe7 {[%emt 0:00:10]} 18. Re4 {[%emt 0:01:03]} Be6 {[%emt 0:00:07]} 19. Nh5 {[%emt 0:00:11]} Kh8 {[%emt 0:00:56]} 20. Qg3 {[%emt 0:00:47]} Rg8 {[%emt 0:00:03]} 21. Bxe6 {[%emt 0:00:17]} Qxe6 {[%emt 0:00:06]} 22. Rg4 {[%emt 0:00:01]} Nc2 {[%emt 0:00:20]} 23. Rb1 {[%emt 0:00:08]} Nd4 {[%emt 0:00:02]} 24. Re4 {[%emt 0:00:07]} Qf5 {[%emt 0:00:04]} 25. Qh4 {[%emt 0:00:01]} Rae8 {[%emt 0:00:19]} 26. Be3 {[%emt 0:00:04]} Rxe5 {[%emt 0:00:05]} 27. Ng3 {[%emt 0:00:04]} Qg6 {[%emt 0:00:04]} 28. Rxe5 {[%emt 0:00:02]} Qxb1+ {[%emt 0:00:01]} 29. Kh2 {[%emt 0:00:01]} Ne6 {[%emt 0:00:07]} 30. Bxh6 {[%emt 0:00:01]} Qh7 {[%emt 0:00:03]} 31. Rh5 {[%emt 0:00:03]} g6 {[%emt 0:00:05]} 32. Bg7+ {[%emt 0:00:01]} Rxg7 {[%emt 0:00:03]} 33. Rxh7+ {[%emt 0:00:02]} Rxh7 {[%emt 0:00:01]} 34. Qf6+ {[%emt 0:00:01]} Kg8 {[%emt 0:00:01]} 35. Ne2 {[%emt 0:00:03]} Bc5 {[%emt 0:00:03]} 36. f4 {[%emt 0:00:02]} Bd6 37. g4 Rg7 {[%emt 0:00:05]} 38. Kg2 {[%emt 0:00:04]} g5 {[%emt 0:00:02]} 39. f5 {[%emt 0:00:02]} Nf4+ {[%emt 0:00:01]} 40. Nxf4 {[%emt 0:00:04]} Bxf4 {[%emt 0:00:01]} 41. Qd8+ {[%emt 0:00:01]} Kh7 {[%emt 0:00:01]} 42. Qe7 {[%emt 0:00:02]} b6 {[%emt 0:00:01]} 43. f6 {[%emt 0:00:01]} Rg6 {[%emt 0:00:05]} 44. Qxf7+ {[%emt 0:00:01]} Kh6 {[%emt 0:00:01]} 45. Qf8+ {[%emt 0:00:01]} Kh7 {[%emt 0:00:01]} 46. Qe7+ {[%emt 0:00:02]} Kh6 {[%emt 0:00:02]} 47. f7 {[%emt 0:00:01]} 1-0

[Event "RUS-ch Men Blitz 2019"]
[Site "Sochi"]
[Date "2019.10.20"]
[Round "4.10"]
[White "Rozum, Ivan"]
[Black "Lysyj, Igor"]
[Result "1/2-1/2"]
[ECO "D02"]
[WhiteElo "2599"]
[BlackElo "2596"]
[Annotator "ChessBase"]
[PlyCount "22"]
[EventDate "2019.10.17"]
[EventType "swiss"]
[EventCountry "RUS"]
[SourceTitle "playchess.com"]
[Source "ChessBase"]
[SourceQuality "1"]
[TimeControl "180+2"]

1. d4 {[%emt 0:00:00]} d5 {[%emt 0:00:00]} 2. Nf3 {[%emt 0:00:01]} Nf6 {[%emt 0:00:00]} 3. c4 {[%emt 0:00:01]} e6 {[%emt 0:00:01]} 4. e3 {[%emt 0:00:01]} Be7 {[%emt 0:00:02]} 5. b3 {[%emt 0:00:02]} O-O {[%emt 0:00:02]} 6. Bb2 {[%emt 0:00:01]} c5 {[%emt 0:00:02]} 7. cxd5 {[%emt 0:00:10]} Nxd5 {[%emt 0:00:06]} 8. dxc5 {[%emt 0:00:02]} Bxc5 {[%emt 0:00:03]} 9. a3 {[%emt 0:00:01]} b6 {[%emt 0:00:10]} 10. Bd3 {[%emt 0:00:04]} Bb7 {[%emt 0:00:02]} 11. O-O {[%emt 0:00:02]} Nd7 {[%emt 0:00:07]} 1/2-1/2

[Event "RUS-ch Men Blitz 2019"]
[Site "Sochi"]
[Date "2019.10.17"]
[Round "4.10"]
[White "Gochelashvili, David"]
[Black "Triapishko, Alexandr"]
[Result "0-1"]
[ECO "A05"]
[WhiteElo "2403"]
[BlackElo "2514"]
[Annotator "ChessBase"]
[PlyCount "66"]
[EventDate "2019.10.17"]
[EventType "swiss"]
[EventCountry "RUS"]
[SourceTitle "playchess.com"]
[Source "ChessBase"]
[SourceQuality "1"]
[TimeControl "180+2"]

1. Nf3 {[%emt 0:00:00]} Nf6 {[%emt 0:00:01]} 2. d4 {[%emt 0:00:02]} e6 {[%emt 0:00:03]} 3. Bf4 {[%emt 0:00:06]} c5 {[%emt 0:00:05]} 4. c3 {[%emt 0:00:07]} d5 {[%emt 0:00:03]} 5. Nbd2 {[%emt 0:00:08]} Bd6 {[%emt 0:00:06]} 6. Bg3 {[%emt 0:00:11]} O-O {[%emt 0:00:04]} 7. e3 {[%emt 0:00:01]} Qc7 {[%emt 0:00:02]} 8. Bd3 {[%emt 0:00:03]} Nbd7 {[%emt 0:00:02]} 9. Rc1 {[%emt 0:00:11]} e5 {[%emt 0:00:05]} 10. dxe5 {[%emt 0:00:25]} Nxe5 {[%emt 0:00:02]} 11. Nxe5 {[%emt 0:00:02]} Bxe5 {[%emt 0:00:01]} 12. Nf3 {[%emt 0:00:10]} Bxg3 {[%emt 0:00:22]} 13. hxg3 {[%emt 0:00:01]} g6 {[%emt 0:00:00]} 14. c4 {[%emt 0:00:07]} Qa5+ {[%emt 0:00:25]} 15. Qd2 {[%emt 0:00:01]} Qxd2+ {[%emt 0:00:06]} 16. Kxd2 {[%emt 0:00:10]} Rd8 {[%emt 0:00:26]} 17. Ke2 {[%emt 0:00:05]} b6 {[%emt 0:00:08]} 18. Rh4 {[%emt 0:00:35]} h5 {[%emt 0:00:19]} 19. b4 {[%emt 0:00:54]} cxb4 {[%emt 0:00:11]} 20. c5 {[%emt 0:00:01]} bxc5 {[%emt 0:00:09]} 21. Rxc5 {[%emt 0:00:01]} a5 {[%emt 0:00:03]} 22. Rf4 {[%emt 0:00:01]} Kg7 {[%emt 0:00:08]} 23. Ng5 {[%emt 0:00:05]} Rd6 {[%emt 0:00:26]} 24. Rc7 {[%emt 0:00:08]} Bd7 {[%emt 0:00:00]} 25. Rb7 {[%emt 0:00:04]} Rc8 {[%emt 0:00:15]} 26. Kd2 {[%emt 0:00:04]} Be8 {[%emt 0:00:08]} 27. Ra7 {[%emt 0:00:02]} Rc5 {[%emt 0:00:03]} 28. Rd4 {[%emt 0:00:05]} Rd7 {[%emt 0:00:03]} 29. Ra6 {[%emt 0:00:03]} Nh7 {[%emt 0:00:04]} 30. Nf3 {[%emt 0:00:02]} Nf8 {[%emt 0:00:03]} 31. Ne5 {[%emt 0:00:01]} Re7 {[%emt 0:00:01]} 32. f4 {[%emt 0:00:01]} Ne6 {[%emt 0:00:00]} 33. Ra7 {[%emt 0:00:03]} Rxa7 {[%emt 0:00:02]} 0-1

[Event "RUS-ch Men Blitz 2019"]
[Site "Sochi"]
[Date "2019.10.17"]
[Round "4.11"]
[White "Pridorozhni, Aleksei"]
[Black "Airapetian, Gor"]
[Result "1-0"]
[ECO "B11"]
[WhiteElo "2599"]
[BlackElo "2447"]
[Annotator "ChessBase"]
[PlyCount "52"]
[EventDate "2019.10.17"]
[EventType "swiss"]
[EventCountry "RUS"]
[SourceTitle "playchess.com"]
[Source "ChessBase"]
[SourceQuality "1"]
[TimeControl "180+2"]

1. e4 c6 {[%emt 0:00:00]} 2. Nc3 {[%emt 0:00:01]} d5 {[%emt 0:00:01]} 3. Nf3 {[%emt 0:00:02]} Bg4 {[%emt 0:00:02]} 4. h3 {[%emt 0:00:01]} Bxf3 {[%emt 0:00:02]} 5. Qxf3 {[%emt 0:00:02]} e6 {[%emt 0:00:01]} 6. a3 {[%emt 0:00:01]} Nd7 {[%emt 0:00:09]} 7. d3 {[%emt 0:00:03]} g6 {[%emt 0:00:09]} 8. g3 {[%emt 0:00:02]} Bg7 {[%emt 0:00:01]} 9. Bg2 {[%emt 0:00:01]} Ne7 {[%emt 0:00:09]} 10. O-O {[%emt 0:00:02]} O-O {[%emt 0:00:02]} 11. Qe2 {[%emt 0:00:02]} Qb6 {[%emt 0:00:28]} 12. Kh2 {[%emt 0:00:02]} Rae8 {[%emt 0:00:54]} 13. f4 {[%emt 0:00:03]} Qc7 {[%emt 0:00:03]} 14. Bd2 {[%emt 0:00:04]} f5 {[%emt 0:00:20]} 15. e5 {[%emt 0:00:02]} a6 {[%emt 0:00:06]} 16. Nd1 {[%emt 0:00:15]} c5 {[%emt 0:00:01]} 17. c4 {[%emt 0:00:03]} Rd8 {[%emt 0:00:48]} 18. Ne3 {[%emt 0:00:03]} d4 {[%emt 0:00:09]} 19. Nc2 {[%emt 0:00:03]} b5 {[%emt 0:00:03]} 20. b3 {[%emt 0:00:03]} Nc6 {[%emt 0:00:06]} 21. Qf3 {[%emt 0:00:08]} Rc8 {[%emt 0:00:01]} 22. Rfc1 {[%emt 0:00:05]} bxc4 {[%emt 0:00:05]} 23. bxc4 {[%emt 0:00:02]} Nb6 {[%emt 0:00:03]} 24. a4 {[%emt 0:00:05]} Nd7 {[%emt 0:00:01]} 25. a5 {[%emt 0:00:05]} Ne7 {[%emt 0:00:02]} 26. Qb7 {[%emt 0:00:08]} Nb8 {[%emt 0:00:06]} 1-0

[Event "RUS-ch Men Blitz 2019"]
[Site "Sochi"]
[Date "2019.10.17"]
[Round "4.13"]
[White "Khegay, Dmitriy"]
[Black "Zakaryan, David"]
[Result "1-0"]
[ECO "B47"]
[WhiteElo "2509"]
[BlackElo "2338"]
[Annotator "ChessBase"]
[PlyCount "47"]
[EventDate "2019.10.17"]
[EventType "swiss"]
[EventCountry "RUS"]
[SourceTitle "playchess.com"]
[Source "ChessBase"]
[SourceQuality "1"]
[TimeControl "180+2"]

1. e4 {[%emt 0:00:00]} c5 {[%emt 0:00:00]} 2. Nf3 {[%emt 0:00:00]} Nc6 {[%emt 0:00:00]} 3. Nc3 {[%emt 0:00:02]} e6 {[%emt 0:00:02]} 4. d4 {[%emt 0:00:04]} cxd4 5. Nxd4 Qc7 {[%emt 0:00:02]} 6. g3 {[%emt 0:00:01]} a6 {[%emt 0:00:05]} 7. Bg2 {[%emt 0:00:01]} Nf6 {[%emt 0:00:03]} 8. O-O {[%emt 0:00:01]} Nxd4 {[%emt 0:00:10]} 9. Qxd4 {[%emt 0:00:01]} Bc5 {[%emt 0:00:01]} 10. Qd3 {[%emt 0:00:07]} h6 {[%emt 0:00:05]} 11. Be3 {[%emt 0:00:13]} d6 {[%emt 0:00:47]} 12. Rad1 {[%emt 0:00:16]} Ke7 {[%emt 0:00:13]} 13. Kh1 {[%emt 0:00:21]} Rd8 {[%emt 0:00:02]} 14. e5 {[%emt 0:00:10]} Ne8 {[%emt 0:00:13]} 15. exd6+ {[%emt 0:00:19]} Rxd6 {[%emt 0:00:08]} 16. Qe4 {[%emt 0:01:00]} Nf6 {[%emt 0:00:05]} 17. Qc4 {[%emt 0:00:01]} Nd7 {[%emt 0:00:50]} 18. Bf4 {[%emt 0:00:02]} e5 {[%emt 0:00:12]} 19. Be3 {[%emt 0:00:14]} Kf8 {[%emt 0:00:19]} 20. Nd5 {[%emt 0:00:12]} Qc6 {[%emt 0:00:12]} 21. Nf6 {[%emt 0:00:06]} Rxf6 {[%emt 0:00:04]} 22. Bxc6 {[%emt 0:00:01]} Rxc6 {[%emt 0:00:00]} 23. Rxd7 {[%emt 0:00:04]} Bxe3 {[%emt 0:00:08]} 24. Qxf7# 1-0

[Event "RUS-ch Men Blitz 2019"]
[Site "Sochi"]
[Date "2019.10.17"]
[Round "4.14"]
[White "Eraschenkov, Denis"]
[Black "Zakhartsov, Vladimir"]
[Result "1-0"]
[ECO "B50"]
[WhiteElo "2382"]
[BlackElo "2514"]
[Annotator "ChessBase"]
[PlyCount "68"]
[EventDate "2019.10.17"]
[EventType "swiss"]
[EventCountry "RUS"]
[SourceTitle "playchess.com"]
[Source "ChessBase"]
[SourceQuality "1"]
[TimeControl "180+2"]

1. e4 {[%emt 0:00:00]} c5 {[%emt 0:00:00]} 2. Nf3 {[%emt 0:00:01]} d6 {[%emt 0:00:00]} 3. c3 {[%emt 0:00:01]} Nf6 {[%emt 0:00:04]} 4. h3 {[%emt 0:00:01]} g6 {[%emt 0:00:04]} 5. Bd3 {[%emt 0:00:01]} Bg7 {[%emt 0:00:01]} 6. Bc2 {[%emt 0:00:01]} Nc6 {[%emt 0:00:05]} 7. d4 {[%emt 0:00:02]} d5 {[%emt 0:00:03]} 8. e5 {[%emt 0:00:09]} Ne4 {[%emt 0:00:02]} 9. O-O {[%emt 0:00:02]} O-O {[%emt 0:00:02]} 10. Nbd2 {[%emt 0:00:04]} Bf5 {[%emt 0:00:03]} 11. Re1 {[%emt 0:00:16]} Nxd2 {[%emt 0:00:03]} 12. Bxd2 {[%emt 0:00:03]} Bxc2 {[%emt 0:00:02]} 13. Qxc2 {[%emt 0:00:02]} Qb6 {[%emt 0:00:01]} 14. dxc5 {[%emt 0:00:12]} Qxc5 {[%emt 0:00:02]} 15. Be3 {[%emt 0:00:08]} Qa5 {[%emt 0:00:02]} 16. Bf4 {[%emt 0:00:08]} Rac8 {[%emt 0:00:04]} 17. Qd2 {[%emt 0:00:04]} Rfd8 {[%emt 0:00:57]} 18. Bh6 {[%emt 0:00:08]} d4 {[%emt 0:00:05]} 19. c4 {[%emt 0:00:20]} Qc5 {[%emt 0:00:24]} 20. Bxg7 {[%emt 0:00:04]} Kxg7 {[%emt 0:00:01]} 21. b3 {[%emt 0:00:02]} a5 {[%emt 0:00:15]} 22. Qf4 {[%emt 0:00:09]} h6 {[%emt 0:00:09]} 23. Rad1 {[%emt 0:00:14]} e6 {[%emt 0:00:26]} 24. Nh2 {[%emt 0:00:02]} Qe7 {[%emt 0:00:08]} 25. h4 {[%emt 0:00:02]} h5 {[%emt 0:00:05]} 26. Nf3 {[%emt 0:00:02]} Qc5 {[%emt 0:00:25]} 27. Ng5 {[%emt 0:00:07]} Qe7 {[%emt 0:00:10]} 28. Rd3 {[%emt 0:00:06]} Rd7 {[%emt 0:00:04]} 29. Ne4 {[%emt 0:00:07]} Rcd8 {[%emt 0:00:04]} 30. Nf6 {[%emt 0:00:06]} Nxe5 {[%emt 0:00:04]} 31. Nxh5+ {[%emt 0:00:07]} gxh5 {[%emt 0:00:01]} 32. Rxe5 {[%emt 0:00:02]} f6 {[%emt 0:00:03]} 33. Rg3+ {[%emt 0:00:05]} Kf8 {[%emt 0:00:03]} 34. Qh6+ {[%emt 0:00:05]} Qg7 {[%emt 0:00:03]} 1-0

[Event "RUS-ch Men Blitz 2019"]
[Site "Sochi"]
[Date "2019.10.17"]
[Round "4.15"]
[White "Kovalchuk, Alexey"]
[Black "Bryakin, Mikhail"]
[Result "0-1"]
[ECO "B12"]
[WhiteElo "2388"]
[BlackElo "2440"]
[Annotator "NA RC"]
[PlyCount "142"]
[EventDate "2019.10.17"]
[EventType "swiss"]
[EventCountry "RUS"]
[SourceTitle "playchess.com"]
[Source "ChessBase"]
[SourceQuality "1"]
[TimeControl "180+2"]

1. e4 {[%emt 0:00:00]} c6 {[%emt 0:00:00]} 2. d4 {[%emt 0:00:00]} d5 {[%emt 0:00:00]} 3. e5 {[%emt 0:00:01]} Bf5 {[%emt 0:00:00]} 4. Nf3 {[%emt 0:00:01]} e6 {[%emt 0:00:00]} 5. Be2 {[%emt 0:00:01]} Nd7 {[%emt 0:00:01]} 6. O-O {[%emt 0:00:02]} Bg6 {[%emt 0:00:00]} 7. Nbd2 {[%emt 0:00:03]} Nh6 {[%emt 0:00:01]} 8. Nb3 {[%emt 0:00:01]} Nf5 {[%emt 0:00:01]} 9. Bd2 {[%emt 0:00:02]} h5 {[%emt 0:00:02]} 10. Rc1 {[%emt 0:00:41]} h4 {[%emt 0:00:02]} 11. c4 {[%emt 0:00:17]} dxc4 {[%emt 0:00:01]} 12. Na5 {[%emt 0:00:02]} Rb8 {[%emt 0:00:11]} 13. Nxc4 {[%emt 0:00:06]} Be7 {[%emt 0:00:00]} 14. Ba5 {[%emt 0:00:03]} b6 {[%emt 0:00:18]} 15. Bd2 {[%emt 0:00:01]} O-O {[%emt 0:00:03]} 16. Ne3 {[%emt 0:00:29]} c5 {[%emt 0:00:01]} 17. d5 {[%emt 0:00:16]} Nxe3 {[%emt 0:00:28]} 18. Bxe3 {[%emt 0:00:01]} exd5 {[%emt 0:00:01]} 19. Qxd5 {[%emt 0:00:02]} Qc8 {[%emt 0:00:09]} 20. Rfd1 {[%emt 0:00:40]} Rd8 {[%emt 0:00:02]} 21. e6 {[%emt 0:00:15]} Nf6 {[%emt 0:00:06]} 22. exf7+ {[%emt 0:00:03]} Bxf7 {[%emt 0:00:02]} 23. Qe5 {[%emt 0:00:04]} Qe6 {[%emt 0:00:06]} 24. Qxe6 {[%emt 0:00:22]} Bxe6 {[%emt 0:00:01]} 25. b3 {[%emt 0:00:08]} Ne4 {[%emt 0:00:19]} 26. Bf4 {[%emt 0:00:06]} Rxd1+ {[%emt 0:00:04]} 27. Rxd1 {[%emt 0:00:02]} Rd8 {[%emt 0:00:01]} 28. Rxd8+ {[%emt 0:00:02]} Bxd8 {[%emt 0:00:00]} 29. Be5 {[%emt 0:00:04]} g5 {[%emt 0:00:09]} 30. Bd3 Bd5 31. Ne1 {[%emt 0:00:04]} Kf7 {[%emt 0:00:04]} 32. f3 {[%emt 0:00:02]} Nf6 {[%emt 0:00:02]} 33. Nc2 {[%emt 0:00:01]} Ke6 {[%emt 0:00:02]} 34. Bb8 {[%emt 0:00:02]} a5 {[%emt 0:00:05]} 35. Ne3 {[%emt 0:00:01]} Bc6 {[%emt 0:00:11]} 36. Bf5+ {[%emt 0:00:03]} Kf7 {[%emt 0:00:01]} 37. Nc4 {[%emt 0:00:02]} Bd5 {[%emt 0:00:20]} 38. Ne5+ {[%emt 0:00:03]} Ke7 {[%emt 0:00:03]} 39. Ng6+ Kf7 40. Ne5+ {[%emt 0:00:02]} Ke7 {[%emt 0:00:01]} 41. Kf2 {[%emt 0:00:01]} b5 {[%emt 0:00:14]} 42. Nd3 {[%emt 0:00:02]} c4 {[%emt 0:00:01]} 43. bxc4 {[%emt 0:00:01]} bxc4 {[%emt 0:00:05]} 44. Ne5 Bb6+ {[%emt 0:00:06]} 45. Ke2 {[%emt 0:00:05]} Bd4 {[%emt 0:00:07]} 46. Ng6+ {[%emt 0:00:01]} Kd8 {[%emt 0:00:04]} 47. Be5 {[%emt 0:00:03]} Bxe5 48. Nxe5 {[%emt 0:00:01]} Kc7 {[%emt 0:00:03]} 49. Ke3 {[%emt 0:00:02]} Kb6 {[%emt 0:00:10]} 50. Kd4 Kb5 51. Bc2 {[%emt 0:00:04]} Kb4 {[%emt 0:00:02]} 52. g3 {[%emt 0:00:02]} h3 {[%emt 0:00:10]} 53. f4 {[%emt 0:00:02]} gxf4 {[%emt 0:00:03]} 54. gxf4 {[%emt 0:00:01]} c3 {[%emt 0:00:04]} 55. Nd3+ {[%emt 0:00:01]} Ka3 {[%emt 0:00:01]} 56. Kxc3 {[%emt 0:00:02]} Kxa2 {[%emt 0:00:04]} 57. Nf2 {[%emt 0:00:02]} Bg2 {[%emt 0:00:05]} 58. Bf5 {[%emt 0:00:02]} Nd5+ {[%emt 0:00:00]} 59. Kd4 {[%emt 0:00:02]} Nxf4 {[%emt 0:00:01]} 60. Ke3 {[%emt 0:00:02]} Nd5+ {[%emt 0:00:02]} 61. Kd4 {[%emt 0:00:01]} Kb2 {[%emt 0:00:12]} 62. Nxh3 {[%emt 0:00:04]} Bxh3 {[%emt 0:00:05]} 63. Bxh3 {[%emt 0:00:01]} a4 {[%emt 0:00:01]} 64. Be6 {[%emt 0:00:02]} Nf4 {[%emt 0:00:06]} 65. Bc4 {[%emt 0:00:03]} Nh3 {[%emt 0:00:02]} 66. Ke3 {[%emt 0:00:02]} a3 {[%emt 0:00:02]} 67. Kf3 {[%emt 0:00:02]} Ng5+ {[%emt 0:00:01]} 68. Kg4 {[%emt 0:00:01]} Ne4 {[%emt 0:00:02]} 69. h4 {[%emt 0:00:01]} Nd2 {[%emt 0:00:01]} 70. Bd5 {[%emt 0:00:05]} Nb3 {[%emt 0:00:01]} 71. h5 {[%emt 0:00:01]} a2 {[%emt 0:00:00]} 0-1